bitfinex/quotes_ETHUSD_20241204
["timestamp","ask_amount","ask_price","bid_price","bid_amount"]
[1733324985771,0.24222922,3813.1,3810.9,0.12623457]
[1733324985974,0.93815511,3813.5,3811.2,0.2]
[1733324986208,0.53347889,3813.5,3812.1,3.0]
[1733324986410,2.62192,3814.0,3812.3,3.0]
[1733324986596,2.62202,3813.9,3812.0,2.62328]
[1733324986806,0.5342662,3813.9,3811.1,3.0]
[1733324987019,0.5342662,3813.9,3811.5,0.1]
[1733324987225,2.62234,3813.4,3811.6,3.0]
[1733324987525,0.5342662,3813.9,3811.3,3.0]
[1733324987526,2.62261,3813.0,3811.3,3.0]
[1733324987748,1.6217,3813.1,3812.2,3.0]
[1733324988030,1.6217,3813.1,3811.5,3.0]
[1733324988382,1.6217,3813.1,3811.7,3.0]
[1733324988601,1.6217,3813.1,3811.1,3.1]
[1733324988919,0.51736535,3813.9,3811.8,3.0]
[1733324988920,1.5861,3812.9,3811.8,3.0]
[1733324989425,1.5861,3812.9,3811.0,0.2]
[1733324989426,1.5861,3812.9,3811.4,3.0]
[1733324989723,0.16217,3813.0,3811.1,3.0]
[1733324989724,1.5989,3812.7,3811.1,3.0]
[1733324989877,1.5989,3812.7,3810.1,2.62456]
[1733324990082,1.5989,3812.0,3810.5,0.2]
[1733324990282,1.5989,3812.0,3811.2,2.62382]
[1733324990526,1.5989,3812.0,3810.5,0.326238]
[1733324990527,1.5989,3812.0,3810.5,0.1]
[1733324990817,1.5989,3812.0,3811.1,2.62389]
[1733324991026,1.5989,3812.0,3810.5,2.92427]
[1733324991027,1.5989,3812.0,3810.6,0.02623724]
[1733324991325,1.5989,3812.0,3811.0,0.1]
[1733324991620,1.5989,3812.0,3811.2,3.0]
[1733324992032,1.5989,3812.0,3811.9,2.62336]
[1733324992236,1.5989,3812.0,3811.9,5.62336]
[1733324992434,1.5989,3812.0,3811.5,5.62357]
[1733324992668,1.5989,3812.0,3810.7,0.1]
[1733324992800,1.5989,3812.0,3811.2,2.62382]
[1733324993004,1.5989,3812.0,3810.9,0.1]
[1733324993266,1.5989,3812.0,3810.4,2.62435]
[1733324993535,4.21046,3811.9,3810.1,2.62459]
[1733324993736,1.5871,3811.8,3810.0,1.02624082]
[1733324994044,1.5871,3811.8,3810.3,0.2]
[1733324994243,1.5871,3811.8,3810.0,1.1]
[1733324994411,1.5871,3811.8,3810.5,0.1]
[1733324994609,2.62358,3811.6,3810.0,1.0]
[1733324994807,1.5703,3811.6,3810.0,1.0]
[1733324995008,1.5703,3811.6,3810.1,2.62458]
[1733324995216,1.5703,3811.6,3810.1,0.3]
[1733324995404,1.5703,3811.6,3810.8,2.62405]
[1733324995636,1.5703,3811.6,3810.4,0.2]
[1733324995637,1.5703,3811.6,3811.0,2.62391]
[1733324995808,1.5703,3811.6,3811.1,0.02623608]
[1733324996007,1.5703,3811.6,3810.0,1.0]
[1733324996008,1.5703,3811.6,3811.0,0.1]
[1733324996221,1.5703,3811.6,3811.3,3.0]
[1733324996446,1.5703,3811.6,3810.5,2.62432]
[1733324996611,1.5703,3811.6,3810.6,3.0]
[1733324997010,1.5703,3811.6,3810.2,2.62453]
[1733324997208,2.62367,3811.5,3810.0,1.0]
[1733324997433,1.824367,3811.4,3810.0,1.0]
[1733324997609,1.824367,3811.4,3810.4,2.62439]
[1733324998147,1.824367,3811.4,3810.2,2.62448]
[1733324998526,1.824367,3811.4,3810.0,1.0]
[1733324998725,1.824367,3811.4,3810.1,2.6246]
[1733324998924,1.562,3811.4,3810.0,1.1]
[1733324999153,1.562,3811.4,3810.7,2.62418]
[1733324999392,1.562,3811.4,3810.6,2.62425]
[1733324999593,1.562,3811.4,3810.3,2.62446]
[1733324999755,1.562,3811.4,3810.3,3.0]
[1733324999956,1.562,3811.4,3810.7,2.62418]
[1733325000186,1.562,3811.4,3810.2,2.72452]
[1733325000187,1.562,3811.4,3810.4,0.02624262]
[1733325000389,1.562,3811.4,3810.4,0.2]
[1733325000599,1.562,3811.4,3810.9,3.0]
[1733325000769,1.562,3811.4,3810.5,3.0]
[1733325000971,1.562,3811.4,3811.2,3.0]
[1733325001467,1.562,3811.4,3811.3,5.62377]
[1733325001672,1.562,3811.4,3810.4,0.1]
[1733325001999,1.562,3811.4,3810.4,0.3]
[1733325002210,1.562,3811.4,3811.3,5.62377]
[1733325002499,3.73401821,3814.3,3812.1,5.62318]
[1733325002500,1.5358,3812.2,3812.1,5.62318]
[1733325002797,1.5286,3814.0,3812.3,2.62308]
[1733325003035,0.20419129,3813.9,3813.3,3.0]
[1733325003184,1.5286,3814.0,3813.3,3.0]
[1733325003185,1.5286,3814.0,3813.8,3.0]
[1733325003385,1.5286,3814.0,3813.0,3.0]
[1733325003586,1.5286,3814.0,3813.1,3.0]
[1733325003882,1.5286,3814.0,3812.7,2.6228]
[1733325004081,1.5286,3814.0,3812.2,2.82311]
[1733325004082,1.5286,3814.0,3813.3,3.0]
[1733325004320,1.5286,3814.0,3813.9,2.62198]
[1733325004529,1.5286,3814.0,3813.9,5.62198]
[1733325004895,1.5286,3814.0,3813.0,0.1]
[1733325005219,3.33,3814.3,3812.6,0.2]
[1733325005220,4.8758,3814.3,3814.2,5.62178]
[1733325005428,4.8758,3814.3,3814.1,3.0]
[1733325005633,4.8758,3814.3,3813.5,0.1]
[1733325005919,4.8758,3814.3,3814.2,5.62178]
[1733325006141,4.8758,3814.3,3814.2,5.92178]
[1733325006142,3.33,3814.3,3814.2,5.92178]
[1733325006769,3.33,3814.3,3814.2,5.72178]
[1733325006927,3.33,3814.3,3814.2,5.62178]
[1733325007896,2.01914,3814.3,3814.2,5.82178]
[1733325008098,20.19196533,3814.5,3814.4,2.82164]
[1733325008540,20.19196533,3814.5,3814.4,5.82164]
[1733325008683,20.19196533,3814.5,3814.4,7.87994]
[1733325008888,23.52196533,3814.5,3814.4,7.87994]
[1733325009184,16.96801533,3814.5,3814.4,7.32994]
[1733325009384,16.96801533,3814.5,3814.4,7.87994]
[1733325009985,16.96801533,3814.5,3814.4,8.28292703]
[1733325010185,9.35047461,3814.5,3814.4,8.28292703]
[1733325011142,6.72917461,3814.5,3814.4,8.28292703]
[1733325011432,6.12680461,3814.5,3814.4,8.28292703]
[1733325011637,2.42849708,3814.5,3814.4,7.28970379]
[1733325011795,6.5389744,3815.3,3815.2,0.3]
[1733325011996,5.2286344,3815.3,3815.2,0.3]
[1733325012223,0.0048534,3815.6,3815.5,2.92088]
[1733325012395,0.0048534,3815.6,3815.5,5.92088]
[1733325013097,7.8331534,3815.8,3815.7,2.92075]
[1733325013299,7.8331534,3815.8,3815.7,5.92075]
[1733325013731,1.2831534,3815.8,3815.7,2.72075]
[1733325014040,1.2831534,3815.8,3815.7,2.92075]
[1733325014201,1.6084,3817.2,3816.1,2.82047]
[1733325014394,13.05928485,3816.2,3816.1,2.82047]
[1733325014639,13.71874998,3816.2,3816.1,2.62047]
[1733325014824,13.05928485,3816.2,3816.1,2.62047]
[1733325015204,13.05928485,3816.2,3816.1,2.82047]
[1733325015404,13.05928485,3816.2,3816.1,2.62047]
[1733325015634,13.05928485,3816.2,3814.6,3.14990674]
[1733325015635,1.6274,3816.1,3815.2,0.1]
[1733325015938,1.6274,3816.1,3814.9,2.62126]
[1733325016138,1.46866848,3816.0,3814.9,2.62126]
[1733325016301,1.46866848,3816.0,3814.7,2.62143]
[1733325016502,1.5398,3815.9,3814.7,2.62143]
[1733325016701,1.5398,3815.9,3814.8,0.1]
[1733325016934,1.5398,3815.9,3815.2,2.62108]
[1733325017135,2.99970849,3815.9,3815.0,0.1]
[1733325017347,1.5398,3815.9,3815.6,2.62079]
[1733325017837,1.5398,3815.9,3814.8,2.62136]
[1733325017838,13.05928485,3816.2,3815.5,2.62088]
[1733325018045,13.05928485,3816.2,3816.1,2.62047]
[1733325018245,13.05928485,3816.2,3816.1,5.62047]
[1733325019308,13.05928485,3816.2,3815.8,2.62067]
[1733325019509,1.30592848,3816.1,3816.0,5.62054]
[1733325019734,13.05928485,3816.2,3816.1,5.62047]
[1733325019949,13.05928485,3816.2,3815.5,3.0]
[1733325020257,13.05928485,3816.2,3816.0,3.0]
[1733325020460,1.5508,3816.1,3815.1,0.2]
[1733325020659,1.5508,3816.1,3815.8,2.62067]
[1733325020958,1.5508,3816.1,3816.0,2.62054]
[1733325021308,1.5508,3816.1,3814.8,0.1]
[1733325021542,13.05928485,3816.2,3814.2,2.62176]
[1733325021543,1.6396,3815.9,3814.2,2.62178]
[1733325021849,1.6396,3815.9,3814.3,0.3]
[1733325022049,1.6396,3815.9,3815.8,2.62068]
[1733325022615,13.05928485,3816.2,3816.1,2.62047]
[1733325023249,13.05928485,3816.2,3816.1,5.62047]
[1733325023250,6.50828485,3816.2,3816.1,5.62047]
[1733325023455,6.45828485,3816.2,3816.1,5.62047]
[1733325024124,0.06980815,3816.5,3816.4,2.82027]
[1733325024321,0.06980815,3816.5,3816.4,5.92027]
[1733325024718,0.06980815,3816.5,3816.4,5.72027]
[1733325024910,0.06980815,3816.5,3816.4,5.92027]
[1733325025136,8.15e-06,3816.5,3816.4,5.92027]
[1733325025548,59.67239197,3816.6,3816.5,5.6202]
[1733325025750,59.67239197,3816.6,3816.5,6.1702]
[1733325026254,55.74218197,3816.6,3816.5,6.6522]
[1733325026435,55.74218197,3816.6,3816.5,6.4522]
[1733325026734,55.74218197,3816.6,3816.5,6.6522]
[1733325026946,55.74218197,3816.6,3816.5,6.3702]
[1733325027152,51.81197197,3816.6,3816.5,6.96929672]
[1733325027920,51.81197197,3816.6,3816.5,6.76929672]
[1733325028120,47.93176197,3816.6,3816.5,6.21929672]
[1733325029236,44.00167197,3816.6,3816.5,6.21929672]
[1733325029547,44.00167197,3816.6,3816.5,3.59909672]
[1733325029759,44.00167197,3816.6,3816.5,4.14909672]
[1733325029940,44.00167197,3816.6,3816.5,6.76929672]
[1733325030268,40.07186197,3816.6,3816.5,6.76929672]
[1733325030420,40.06316105,3816.6,3816.5,6.76929672]
[1733325030820,38.80316105,3816.6,3816.5,6.76929672]
[1733325031175,33.56332105,3816.6,3816.5,6.76929672]
[1733325032023,32.25329105,3816.6,3816.5,6.76929672]
[1733325032220,32.25329105,3816.6,3816.5,6.21929672]
[1733325032221,27.01313105,3816.6,3816.5,6.21929672]
[1733325032425,27.01313105,3816.6,3816.5,3.21929672]
[1733325033241,26.96313105,3816.6,3816.5,3.21929672]
[1733325033839,24.34299105,3816.6,3816.5,3.21929672]
[1733325034152,20.41278105,3816.6,3816.5,3.21929672]
[1733325034551,20.41278105,3816.6,3816.5,5.8202]
[1733325034721,20.41278105,3816.6,3816.5,2.6202]
[1733325034927,21.91358105,3816.6,3816.5,2.6202]
[1733325035327,20.41278105,3816.6,3816.5,2.6202]
[1733325035559,15.17250105,3816.6,3816.5,2.6202]
[1733325036325,15.17250105,3816.6,3816.5,5.6202]
[1733325036956,15.17250105,3816.6,3816.5,2.6202]
[1733325037978,15.17250105,3816.6,3816.1,0.1146]
[1733325037979,1.5784,3816.5,3816.1,0.1146]
[1733325038182,1.5784,3816.5,3816.4,2.62027]
[1733325039148,6.00225105,3816.6,3816.5,2.9202]
[1733325039475,1.73836239,3816.7,3816.6,5.88283]
[1733325039778,1.73836239,3816.7,3816.6,6.43283]
[1733325039945,1.73836239,3816.7,3816.6,6.71483]
[1733325040132,7.81948485,3817.1,3816.6,6.71483]
[1733325040133,3.00907724,3817.1,3817.0,3.18255]
[1733325040331,3.00907724,3817.1,3817.0,6.18255]
[1733325041134,7.24e-06,3817.1,3817.0,6.18255]
[1733325041533,7.24e-06,3817.1,3817.0,5.91985]
[1733325041875,7.24e-06,3817.1,3817.0,6.41985]
[1733325043949,7.24e-06,3817.1,3817.0,3.11985]
[1733325044635,7.24e-06,3817.1,3817.0,3.31985]
[1733325045571,7.24e-06,3817.1,3817.0,6.31985]
[1733325046139,7.24e-06,3817.1,3817.0,6.11985]
[1733325046336,1.64990724,3817.1,3817.0,0.5]
[1733325047146,1.81489796,3817.1,3817.0,0.5]
[1733325047415,0.16499796,3817.1,3816.5,0.0073]
[1733325047682,0.16499796,3817.1,3815.7,0.2]
[1733325047683,1.6646,3817.0,3816.0,2.82052]
[1733325047841,1.6646,3817.0,3815.8,0.2]
[1733325048056,1.6646,3817.0,3816.1,2.62041]
[1733325048256,1.6646,3817.0,3815.8,0.2]
[1733325048460,1.6646,3817.0,3815.9,2.62059]
[1733325048757,1.83106072,3817.0,3815.8,0.2]
[1733325048954,1.6646,3817.0,3816.1,0.2]
[1733325049152,1.6646,3817.0,3815.7,0.2]
[1733325049354,1.6646,3817.0,3815.5,0.2]
[1733325049581,1.6646,3817.0,3815.6,0.02620306]
[1733325049895,1.6646,3817.0,3815.5,0.2]
[1733325050060,1.6646,3817.0,3815.3,0.3304787]
[1733325050061,1.528,3816.8,3815.3,2.82096]
[1733325050394,1.528,3816.8,3815.4,2.62092]
[1733325050692,0.53304691,3816.7,3814.8,0.3]
[1733325050882,0.53304691,3816.7,3814.6,0.2]
[1733325050883,1.5226,3816.6,3814.6,0.2]
[1733325051364,1.5226,3816.6,3814.8,2.62135]
[1733325051563,1.85716469,3816.5,3813.8,0.2]
[1733325051859,2.3747,3815.5,3813.1,0.61508029]
[1733325052084,2.3747,3815.3,3813.1,0.2]
[1733325052399,1.6168,3814.9,3813.5,0.2]
[1733325052607,1.6168,3814.9,3814.2,2.62176]
[1733325052761,1.6168,3814.9,3814.3,0.2]
[1733325053076,1.6168,3814.9,3814.5,0.2]
[1733325053279,1.6168,3814.9,3814.1,2.62185]
[1733325053482,1.6168,3814.9,3814.0,0.2]
[1733325053679,1.77848,3814.9,3813.6,0.2]
[1733325054099,1.77848,3814.9,3813.3,0.2]
[1733325054258,1.77848,3814.9,3813.3,2.82236]
[1733325054459,1.77848,3814.9,3813.5,2.62225]
[1733325054759,1.77848,3814.9,3813.8,2.82203]
[1733325054955,1.6168,3814.9,3813.8,0.2]
[1733325055196,1.6168,3814.9,3814.0,2.62188]
[1733325055400,1.6168,3814.9,3814.0,0.2]
[1733325055643,1.6168,3814.9,3814.4,2.62163]
[1733325055936,1.6168,3814.9,3814.2,2.62176]
[1733325056248,1.6168,3814.9,3814.0,2.82191]
[1733325056400,1.6168,3814.9,3814.2,3.0]
[1733325056595,1.6041,3815.3,3814.7,3.0]
[1733325057139,1.6041,3815.3,3814.6,0.2]
[1733325057445,1.6041,3815.3,3815.1,3.0]
[1733325057599,1.6041,3815.3,3814.3,0.1]
[1733325057600,1.6041,3815.3,3814.5,0.2]
[1733325057939,1.6041,3815.3,3814.3,3.3]
[1733325058098,1.6041,3815.3,3814.3,0.1]
[1733325058625,1.5478,3815.1,3813.6,0.1]
[1733325058934,1.5478,3815.1,3813.6,2.62217]
[1733325059135,1.5478,3815.1,3813.7,0.2]
[1733325059384,1.5478,3815.1,3814.0,0.2]
[1733325059524,1.5478,3815.1,3814.6,0.2]
[1733325060037,1.5478,3815.1,3814.9,3.0]
[1733325060244,1.5478,3815.1,3814.8,3.0]
[1733325060533,1.5478,3815.1,3814.4,0.2]
[1733325060747,1.5478,3815.1,3814.8,3.0]
[1733325060894,1.5478,3815.1,3814.6,2.8215]
[1733325061097,1.5478,3815.1,3814.4,3.0]
[1733325061098,1.5478,3815.1,3814.9,3.0]
[1733325061321,1.5478,3815.1,3814.4,0.2]
[1733325061531,4.8778,3815.1,3814.4,0.2]
[1733325061838,4.8778,3815.1,3814.7,3.0]
[1733325062036,4.8778,3815.1,3814.4,0.2]
[1733325062198,4.8778,3815.1,3815.0,5.62123]
[1733325062396,3.33,3815.1,3815.0,5.62123]
[1733325063434,3.328,3815.1,3815.0,5.72123]
[1733325063661,1e-05,3815.6,3815.5,2.92088]
[1733325063861,1e-05,3815.6,3815.5,6.4970774]
[1733325064021,1e-05,3815.6,3815.5,5.82088]
[1733325064722,1e-05,3815.6,3815.5,5.62088]
[1733325064921,1e-05,3815.6,3815.4,3.0]
[1733325065168,1e-05,3815.6,3815.2,0.3]
[1733325065169,1.5924,3815.5,3815.3,3.0]
[1733325065458,1.5924,3815.5,3813.9,0.3710287]
[1733325065459,1.751641,3815.5,3814.0,2.95377]
[1733325065670,1.751641,3815.5,3814.0,0.53123953]
[1733325066216,1.6431,3815.4,3814.0,0.53123953]
[1733325066421,2.6211,3815.2,3814.0,0.53123953]
[1733325066632,2.6211,3815.2,3812.7,2.62279]
[1733325066633,2.62158,3814.5,3812.6,2.62284]
[1733325066922,1.889858,3814.4,3812.7,2.7228]
[1733325067354,1.889858,3814.4,3812.4,0.2]
[1733325067355,0.262158,3814.4,3812.4,0.2]
[1733325067663,1.5663,3814.0,3812.2,2.62314]
[1733325067876,1.5663,3813.9,3811.9,0.1]
[1733325068181,4.13409,3813.8,3811.7,2.62344]
[1733325068334,1.512,3813.3,3811.4,0.2]
[1733325068534,1.512,3813.3,3810.6,0.9771]
[1733325068535,1.512,3813.3,3811.3,2.72376]
[1733325068735,1.512,3813.1,3811.3,2.62376]
[1733325068936,1.512,3813.1,3811.1,2.6239]
[1733325069175,1.512,3813.1,3810.7,0.2]
[1733325069176,2.62262,3813.0,3810.7,0.3]
[1733325069392,2.456,3812.9,3810.9,2.62404]
[1733325069549,1.6247,3812.8,3810.9,2.62404]
[1733325069746,1.6247,3812.6,3810.7,0.1]
[1733325070054,1.6247,3812.6,3811.0,3.03356173]
[1733325070233,1.6247,3812.6,3810.4,0.3]
[1733325070435,1.6247,3812.6,3811.0,2.62397]
[1733325070691,1.6247,3812.6,3810.4,2.72437]
[1733325070880,2.3871,3812.4,3810.5,0.12623941]
[1733325071116,1.6247,3812.3,3811.3,0.2]
[1733325071402,1.6247,3812.3,3811.8,2.6234]
[1733325071951,1.6247,3812.3,3811.6,3.0]
[1733325072156,1.6247,3812.3,3811.5,2.62361]
[1733325072357,1.6247,3812.3,3811.1,0.1]
[1733325072810,1.78717,3812.3,3810.6,0.3]
[1733325072956,1.78717,3812.3,3810.5,2.62428]
[1733325072957,1.78717,3812.3,3810.8,2.62407]
[1733325073164,1.78717,3812.3,3810.1,0.41029726]
[1733325073357,2.5078,3812.2,3810.1,0.41029726]
[1733325073659,3.04289653,3812.0,3810.1,0.41029726]
[1733325073885,1.5426,3811.8,3810.2,0.02624576]
[1733325074203,1.5426,3811.8,3810.6,0.1]
[1733325074385,1.5426,3811.8,3811.6,2.62355]
[1733325074561,1.5426,3811.8,3811.1,0.2]
[1733325074760,1.5426,3811.8,3810.8,0.1]
[1733325074761,1.5426,3811.8,3810.7,0.1]
[1733325075096,1.5426,3811.8,3811.6,2.62352]
[1733325075391,1.5426,3811.8,3811.5,3.0]
[1733325075569,1.5426,3811.8,3810.6,0.1]
[1733325075570,1.5426,3811.8,3811.2,3.0]
[1733325075964,1.5426,3811.8,3811.0,2.62397]
[1733325076166,1.5426,3811.8,3810.4,2.62439]
[1733325076353,1.69686,3811.8,3809.9,2.9247]
[1733325076552,1.69686,3811.8,3810.3,2.62443]
[1733325076809,1.69686,3811.8,3810.0,2.62461]
[1733325077102,1.5747,3811.3,3809.5,2.82497]
[1733325077288,1.5747,3811.3,3809.5,2.62498]
[1733325077592,1.5747,3811.1,3809.4,0.2]
[1733325077800,1.5747,3811.1,3810.1,0.3]
[1733325078097,1.5747,3811.1,3809.9,2.62467]
[1733325078306,1.5747,3811.1,3809.3,3.13543948]
[1733325078515,1.5747,3811.1,3809.7,2.62487]
[1733325078686,1.5847,3810.9,3809.3,0.51032948]
[1733325079218,1.5847,3810.5,3809.4,2.62507]
[1733325079511,1.5847,3810.5,3809.3,0.41032948]
[1733325079963,1.5847,3810.5,3809.7,2.62487]
[1733325080167,1.5619,3811.7,3809.9,0.3]
[1733325080416,0.24236498,3812.7,3810.1,0.3]
[1733325080417,1.6144,3811.5,3810.1,0.3]
[1733325080620,1.6144,3811.5,3810.6,0.1]
[1733325080914,1.6144,3811.5,3810.8,0.2]
[1733325081080,1.6144,3811.5,3811.4,2.6237]
[1733325081267,1.6144,3811.5,3811.4,5.6237]
[1733325081865,1.5421,3812.5,3811.4,3.0]
[1733325082068,1.5421,3812.5,3811.7,0.2]
[1733325082309,1.5421,3813.0,3812.7,2.62281]
[1733325082467,6.66,3813.1,3812.7,5.92281]
[1733325082866,6.66,3813.1,3812.7,0.3]
[1733325083079,6.66,3813.1,3812.7,0.1]
[1733325083326,6.66,3813.1,3812.7,2.72281]
[1733325083901,4.9775,3812.8,3812.5,2.62295]
[1733325084107,6.14125,3812.8,3811.8,0.3]
[1733325084314,6.14125,3812.8,3811.6,0.2]
[1733325084477,6.14125,3812.8,3811.9,2.62335]
[1733325084806,4.49375,3812.8,3811.4,2.62363]
[1733325085007,1.5426,3812.6,3811.2,2.62383]
[1733325085170,0.449375,3812.7,3811.3,2.62377]
[1733325085370,0.449375,3812.7,3811.1,2.62391]
[1733325085570,0.449375,3812.7,3810.8,0.1]
[1733325085804,3.15572059,3812.4,3810.3,2.62441]
[1733325086014,0.31557206,3812.3,3810.4,2.62439]
[1733325086184,5.46897206,3812.3,3810.4,2.62439]
[1733325086381,1.84587206,3812.3,3810.0,2.82465]
[1733325086584,4.46896206,3812.3,3810.0,0.2]
[1733325086783,1.84587206,3812.3,3810.5,2.62431]
[1733325087113,0.50015227,3812.2,3810.6,0.2]
[1733325087317,1.84587206,3812.3,3810.9,0.1]
[1733325087709,1.84587206,3812.3,3810.4,0.1]
[1733325088023,0.2,3811.7,3807.5,0.3627]
[1733325088171,1.5784,3810.8,3808.2,2.62589]
[1733325088366,1.5784,3810.8,3807.3,1.6318]
[1733325088367,1.5784,3810.4,3808.4,0.1]
[1733325088573,1.5784,3810.2,3809.1,0.1]
[1733325088901,1.5784,3810.2,3809.4,2.62507]
[1733325089086,1.5784,3810.2,3809.2,0.1]
[1733325089287,1.5784,3810.2,3810.0,2.62462]
[1733325089585,1.618,3811.7,3809.8,0.1]
[1733325089788,1.618,3811.7,3810.1,0.1]
[1733325090324,1.618,3811.7,3811.0,3.0]
[1733325090473,1.618,3811.7,3811.2,3.0]
[1733325090675,1.618,3811.7,3810.8,0.1]
[1733325090972,1.618,3811.7,3811.2,5.62383]
[1733325091172,1.618,3811.7,3810.8,0.1]
[1733325091401,1.618,3811.7,3810.8,2.62411]
[1733325091602,1.618,3811.7,3810.4,0.1]
[1733325091808,1.618,3811.7,3810.7,2.62418]
[1733325092016,1.618,3811.7,3810.8,0.1]
[1733325092314,1.618,3811.7,3811.4,2.62369]
[1733325092620,1.6159,3812.3,3811.2,0.1]
[1733325092913,4.9459,3812.3,3811.4,3.0]
[1733325093113,0.02624257,3812.2,3811.2,3.1]
[1733325093336,4.82214257,3812.3,3811.2,3.1]
[1733325093487,4.72214257,3812.3,3811.2,3.1]
[1733325093692,4.72214257,3812.3,3811.2,0.1]
[1733325093928,4.72214257,3812.3,3811.7,3.0]
[1733325094134,4.72214257,3812.3,3811.5,3.0]
[1733325094435,4.72214257,3812.3,3811.4,0.1]
[1733325095133,3.33,3812.3,3812.2,0.1]
[1733325095341,3.33,3812.3,3812.2,5.72315]
[1733325095635,3.33,3812.3,3812.2,0.1]
[1733325095995,6.66,3812.3,3812.2,0.1]
[1733325096959,0.9,3812.0,3811.9,5.62336]
[1733325097991,0.9,3812.0,3811.6,2.6235]
[1733325098330,0.9,3812.0,3811.7,2.62347]
[1733325098651,0.9,3812.0,3811.4,2.62365]
[1733325098796,0.9,3812.0,3810.7,1.6151]
[1733325098992,0.9,3812.0,3810.8,2.62412]
[1733325099297,1.6006,3811.9,3810.2,1.5579]
[1733325099630,2.5006,3812.0,3811.4,2.6237]
[1733325099940,0.9,3812.0,3810.5,0.02623321]
[1733325100139,0.9,3812.0,3811.9,2.62336]
[1733325100635,0.9,3812.0,3811.9,5.62336]
[1733325105337,2.4692,3812.0,3811.6,3.0]
[1733325106065,2.4692,3812.0,3810.9,2.62404]
[1733325106272,2.4692,3812.0,3810.3,1.6288]
[1733325106441,2.4692,3812.0,3809.8,1.6288]
[1733325106765,2.4692,3812.0,3810.7,2.62418]
[1733325106974,0.24692,3811.9,3810.7,2.62418]
[1733325107142,0.24692,3811.9,3810.4,2.62437]
[1733325107143,1.5132,3811.8,3810.4,2.62437]
[1733325107481,1.5132,3811.8,3810.6,2.62425]
[1733325107640,1.5132,3811.8,3810.7,3.0]
[1733325107982,1.5132,3811.8,3810.5,3.0]
[1733325108162,1.5189,3811.6,3810.2,2.62453]
[1733325108468,2.62377,3811.3,3809.0,2.62531]
[1733325108673,1.5189,3810.9,3810.1,2.62458]
[1733325108970,1.5189,3810.9,3809.3,0.02624287]
[1733325109140,1.5189,3810.9,3810.0,2.62463]
[1733325109329,1.5189,3810.9,3808.9,0.2627]
[1733325109330,1.67079,3810.9,3808.9,2.65160332]
[1733325109534,1.67079,3810.9,3808.6,1.5889]
[1733325109732,1.67079,3810.9,3808.8,2.62549]
[1733325109733,1.5189,3810.9,3808.8,2.62549]
[1733325110033,1.5189,3810.9,3809.7,2.62482]
[1733325110230,1.5189,3810.9,3810.7,2.62416]
[1733325110464,1.5189,3810.9,3810.8,2.62412]
[1733325110674,1.5189,3810.9,3809.5,0.02624021]
[1733325110880,1.5189,3810.9,3809.3,2.6251]
[1733325111078,1.5189,3810.9,3809.0,0.90216146]
[1733325111383,1.5189,3810.9,3809.5,2.62498]
[1733325111546,1.5189,3810.9,3809.6,2.62488]
[1733325112071,1.5189,3810.9,3809.0,2.62536]
[1733325112274,1.5189,3810.9,3809.9,2.62473]
[1733325112588,1.5189,3810.9,3810.4,2.62438]
[1733325112752,1.5189,3810.9,3810.2,2.62452]
[1733325112956,1.5189,3810.9,3809.6,2.62494]
[1733325113287,1.5189,3810.9,3810.3,2.62446]
[1733325113642,1.5189,3810.9,3808.7,0.53547024]
[1733325113643,1.5189,3810.9,3810.1,3.0]
[1733325113843,1.5189,3810.9,3808.7,0.53547024]
[1733325113844,0.15189,3810.8,3809.2,2.62521]
[1733325114070,1.5189,3810.9,3810.1,3.0]
[1733325114604,1.5189,3810.9,3809.9,2.62473]
[1733325114756,1.5189,3810.9,3808.8,2.62549]
[1733325114942,1.5189,3810.9,3808.5,1.5479]
[1733325115147,1.5189,3810.9,3808.6,0.53152694]
[1733325115375,1.5189,3810.9,3809.4,2.62507]
[1733325115577,1.5189,3810.9,3808.8,0.02624532]
[1733325115777,1.5189,3810.9,3810.0,2.62466]
[1733325115943,1.5189,3810.9,3808.5,1.87819471]
[1733325116148,1.5189,3810.9,3809.4,2.62508]
[1733325116343,1.5189,3810.9,3809.2,3.0]
[1733325116344,1.5125,3810.7,3809.2,3.0]
[1733325116575,1.5125,3810.7,3808.6,2.62559]
[1733325116777,1.5921,3810.5,3808.7,2.62554]
[1733325116990,1.5921,3810.0,3808.7,2.62554]
[1733325117590,1.5921,3810.0,3807.7,2.62622]
[1733325117591,1.5921,3810.0,3807.6,1.5238]
[1733325117793,1.5921,3810.0,3808.2,2.62591]
[1733325117794,1.5399,3809.8,3808.2,2.62591]
[1733325117994,1.5399,3809.8,3807.2,1.5618]
[1733325118159,1.5399,3809.8,3807.3,0.02625794]
[1733325118546,1.5399,3809.8,3808.6,2.62561]
[1733325118757,1.5399,3809.8,3807.7,0.02625427]
[1733325118960,1.5962,3809.6,3807.4,2.62646]
[1733325119158,1.5962,3809.6,3808.2,2.62587]
[1733325119372,1.5962,3809.6,3807.3,2.62653]
[1733325119573,1.5962,3809.6,3808.2,2.62588]
[1733325119787,1.5962,3809.6,3808.3,2.62579]
[1733325119998,1.5962,3809.6,3807.4,2.6526781]
[1733325119999,1.5962,3809.4,3807.2,2.6266]
[1733325120194,1.5962,3809.4,3807.1,0.53095486]
[1733325120400,1.5962,3809.3,3806.9,3.33412715]
[1733325120616,1.5962,3808.9,3806.5,0.4105842]